fUST/lending_fUST_20251028
["ID","MTS","AMOUNT","RATE_DAILY","PERIOD"]
[392528919,1761613839826,-168.0,0.00020524,2]
[392528920,1761613839835,-168.0,0.00020691,2]
[392528921,1761613839844,-720.0,0.00020744,2]
[392528922,1761613839853,-151.0,0.00020749,2]
[392528923,1761613839862,-439.11941106,0.00020782,2]
[392528924,1761613839872,-5255.358164,0.0002079,2]
[392528925,1761613839881,-168.0,0.00020937,2]
[392528926,1761613839890,-168.0,0.00021002,2]
[392528927,1761613839900,-168.0,0.00021017,2]
[392528928,1761613839909,-166.536497,0.00021038,2]
[392528929,1761613839919,-152.277619,0.00021038,2]
[392528930,1761613839928,-1500.0,0.0002104,2]
[392528931,1761613839938,-168.0,0.00021045,2]
[392528932,1761613839949,-278.99934734,0.00021065,2]
[392528933,1761613839959,-168.0,0.00021105,2]
[392528934,1761613839972,-412.0,0.00021164,2]
[392528936,1761613839985,-151.0,0.0002123,2]
[392528937,1761613839994,-840.91916864,0.00021327,2]
[392528938,1761613840012,-151.0,0.000216,4]
[392528940,1761613840022,-151.0,0.000216,3]
[392528941,1761613840031,-587.0,0.00021654,2]
[392528942,1761613840041,-151.0,0.0002171,2]
[392528943,1761613840051,-19390.25861039,0.000219,2]
[392528944,1761613840060,-151.0,0.000219,7]
[392528945,1761613840069,-283.663443,0.000219,7]
[392528946,1761613840078,-283.663443,0.000219,7]
[392528948,1761613840088,-283.663443,0.000219,7]
[392528950,1761613840097,-500.0,0.00021917,2]
[392528952,1761613840106,-500.0,0.00021917,2]
[392528954,1761613840115,-500.0,0.00021917,2]
[392528956,1761613840124,-500.0,0.00021917,2]
[392528958,1761613840134,-500.0,0.00021917,2]
[392528960,1761613840146,-520.88605678,0.00021917,2]
[392528962,1761613840155,-500.0,0.00021917,2]
[392528964,1761613840164,-500.0,0.00021917,2]
[392528966,1761613840174,-160.07369469,0.00021917,2]
[392528968,1761613840183,-500.0,0.00021917,2]
[392528970,1761613840192,-500.0,0.00021917,2]
[392528972,1761613840202,-500.0,0.00021917,2]
[392528974,1761613840211,-500.0,0.00021917,2]
[392528976,1761613840220,-660.59,0.00021917,2]
[392528978,1761613840230,-780.59,0.00021917,2]
[392528980,1761613840239,-500.0,0.00021917,2]
[392528982,1761613840248,-500.0,0.00021917,2]
[392528984,1761613840257,-500.0,0.00021917,2]
[392528986,1761613840266,-500.0,0.00021917,2]
[392528988,1761613840275,-500.0,0.00021917,2]
[392528990,1761613840284,-500.0,0.00021917,2]
[392528992,1761613840293,-500.0,0.00021917,2]
[392528994,1761613840303,-500.0,0.00021917,2]
[392528995,1761613840312,-500.0,0.00021917,2]
[392528997,1761613840321,-500.0,0.00021917,2]
[392528999,1761613840330,-500.0,0.00021917,2]
[392529000,1761613840339,-500.0,0.00021917,2]
[392529002,1761613840348,-500.0,0.00021917,2]
[392529004,1761613840357,-500.0,0.00021917,2]
[392529006,1761613840366,-500.0,0.00021917,2]
[392529007,1761613840376,-500.0,0.00021917,2]
[392529009,1761613840385,-500.0,0.00021917,2]
[392529011,1761613840394,-544.62,0.00021917,2]
[392529013,1761613840403,-500.0,0.00021917,2]
[392529014,1761613840412,-500.0,0.00021917,2]
[392529016,1761613840421,-686.57,0.00021917,2]
[392529018,1761613840431,-500.0,0.00021917,2]
[392529020,1761613840440,-1468.71,0.00021917,2]
[392529022,1761613840449,-500.0,0.00021917,2]
[392529023,1761613840458,-1283.37,0.00021917,2]
[392529025,1761613840467,-511.82,0.00021917,2]
[392529027,1761613840476,-500.0,0.00021917,2]
[392529029,1761613840485,-500.0,0.00021917,2]
[392529030,1761613840494,-721.9,0.00021917,2]
[392529032,1761613840503,-500.0,0.00021917,2]
[392529034,1761613840512,-500.0,0.00021917,2]
[392529036,1761613840521,-500.0,0.00021917,2]
[392529038,1761613840530,-500.0,0.00021917,2]
[392529040,1761613840543,-500.0,0.00021917,2]
[392529041,1761613840552,-500.0,0.00021917,2]
[392529043,1761613840561,-500.0,0.00021917,2]
[392529045,1761613840570,-500.0,0.00021917,2]
[392529047,1761613840580,-500.0,0.00021917,2]
[392529048,1761613840589,-500.0,0.00021917,2]
[392529050,1761613840598,-1000.0,0.00021917,2]
[392529052,1761613840607,-500.0,0.00021917,2]
[392529054,1761613840618,-500.0,0.00021917,2]
[392529055,1761613840628,-500.0,0.00021917,2]
[392529057,1761613840638,-500.0,0.00021917,2]
[392529059,1761613840648,-500.0,0.00021917,2]
[392529061,1761613840657,-500.0,0.00021917,2]
[392529063,1761613840667,-500.0,0.00021917,2]
[392529064,1761613840676,-500.0,0.00021917,2]
[392529066,1761613840686,-500.0,0.00021917,2]
[392529068,1761613840695,-726.18,0.00021917,2]
[392529070,1761613840703,-1311.17,0.00021917,2]
[392529071,1761613840712,-508.13448514,0.00021917,2]
[392529073,1761613840721,-500.0,0.00021917,2]
[392529074,1761613840730,-500.0,0.00021917,2]
[392529076,1761613840739,-500.0,0.00021917,2]
[392529078,1761613840748,-586.0,0.00021917,2]
[392529080,1761613840757,-500.0,0.00021917,2]
[392529082,1761613840766,-633.53,0.00021917,2]
[392529083,1761613840775,-500.0,0.00021917,2]
[392529085,1761613840784,-665.45,0.00021917,2]
[392529087,1761613840794,-500.0,0.00021917,2]
[392529088,1761613840802,-806.26,0.00021917,2]
[392529090,1761613840812,-500.0,0.00021917,2]
[392529092,1761613840821,-500.0,0.00021917,2]
[392529094,1761613840832,-500.0,0.00021917,2]
[392529095,1761613840841,-500.0,0.00021917,2]
[392529097,1761613840850,-1368.44,0.00021917,2]
[392529099,1761613840859,-500.0,0.00021917,2]
[392529101,1761613840868,-843.45,0.00021917,2]
[392529103,1761613840877,-543.41,0.00021917,2]
[392529105,1761613840887,-500.0,0.00021917,2]
[392529107,1761613840896,-407.11063532,0.00021917,2]
[392529108,1761613840905,-500.0,0.00021917,2]
[392529110,1761613840915,-500.0,0.00021917,2]
[392529112,1761613840924,-500.0,0.00021917,2]
[392529114,1761613840933,-500.0,0.00021917,2]
[392529115,1761613840941,-500.0,0.00021917,2]
[392529117,1761613840952,-500.0,0.00021917,2]
[392529118,1761613840962,-500.0,0.00021917,2]
[392529120,1761613840971,-500.0,0.00021917,2]
[392529122,1761613840980,-505.72,0.00021917,2]
[392529124,1761613840989,-1458.9,0.00021917,2]
[392529126,1761613840998,-500.0,0.00021917,2]
[392529127,1761613841007,-500.0,0.00021917,2]
[392529129,1761613841017,-500.0,0.00021917,2]
[392529130,1761613841026,-1128.41,0.00021917,2]
[392529132,1761613841035,-500.0,0.00021917,2]
[392529134,1761613841044,-500.0,0.00021917,2]
[392529136,1761613841054,-500.0,0.00021917,2]
[392529138,1761613841063,-562.95,0.00021917,2]
[392529139,1761613841072,-500.0,0.00021917,2]
[392529141,1761613841081,-500.0,0.00021917,2]
[392529143,1761613841091,-500.0,0.00021917,2]
[392529145,1761613841100,-500.0,0.00021917,2]
[392529146,1761613841109,-500.0,0.00021917,2]
[392529148,1761613841118,-500.0,0.00021917,2]
[392529150,1761613841127,-843.31,0.00021917,2]
[392529151,1761613841136,-500.0,0.00021917,2]
[392529153,1761613841145,-648.16,0.00021917,2]
[392529155,1761613841154,-510.75,0.00021917,2]
[392529157,1761613841163,-500.0,0.00021917,2]
[392529158,1761613841172,-500.0,0.00021917,2]
[392529160,1761613841182,-678.9,0.00021917,2]
[392529162,1761613841190,-500.0,0.00021917,2]
[392529164,1761613841199,-500.4355578,0.00021917,2]
[392529166,1761613841210,-500.0,0.00021917,2]
[392529167,1761613841220,-500.0,0.00021917,2]
[392529169,1761613841230,-512.19782843,0.00021917,2]
[392529171,1761613841239,-500.0,0.00021917,2]
[392529173,1761613841248,-500.0,0.00021917,2]
[392529175,1761613841257,-500.0,0.00021917,2]
[392529176,1761613841266,-500.0,0.00021917,2]
[392529178,1761613841276,-500.0,0.00021917,2]
[392529180,1761613841286,-500.0,0.00021917,2]
[392529182,1761613841295,-500.0,0.00021917,2]
[392529184,1761613841305,-500.0,0.00021917,2]
[392529186,1761613841314,-341.66259973,0.00021917,2]
[392529188,1761613841323,-500.0,0.00021917,2]
[392529189,1761613841332,-936.08,0.00021917,2]
[392529191,1761613841342,-638.13,0.00021917,2]
[392529193,1761613841352,-500.0,0.00021917,2]
[392529195,1761613841360,-541.05,0.00021917,2]
[392529197,1761613841370,-500.0,0.00021917,2]
[392529199,1761613841378,-1457.66,0.00021917,2]
[392529200,1761613841388,-500.0,0.00021917,2]
[392529202,1761613841397,-500.0,0.00021917,2]
[392529204,1761613841406,-500.0,0.00021917,2]
[392529206,1761613841416,-1184.3,0.00021917,2]
[392529208,1761613841425,-774.18,0.00021917,2]
[392529210,1761613841434,-500.0,0.00021917,2]
[392529211,1761613841443,-500.0,0.00021917,2]
[392529213,1761613841452,-500.0,0.00021917,2]
[392529215,1761613841461,-664.38,0.00021917,2]
[392529216,1761613841470,-500.0,0.00021917,2]
[392529218,1761613841479,-500.0,0.00021917,2]
[392529220,1761613841488,-1274.86,0.00021917,2]
[392529221,1761613841496,-500.0,0.00021917,2]
[392529223,1761613841505,-500.0,0.00021917,2]
[392529225,1761613841515,-500.0,0.00021917,2]
[392529227,1761613841524,-500.0,0.00021917,2]
[392529229,1761613841537,-500.0,0.00021917,2]
[392529230,1761613841550,-805.72,0.00021917,2]
[392529232,1761613841560,-500.0,0.00021917,2]
[392529234,1761613841570,-1608.51,0.00021917,2]
[392529236,1761613841580,-500.0,0.00021917,2]
[392529238,1761613841589,-519.85,0.00021917,2]
[392529239,1761613841599,-500.0,0.00021917,2]
[392529241,1761613841608,-500.0,0.00021917,2]
[392529243,1761613841617,-500.0,0.00021917,2]
[392529245,1761613841627,-1632.46,0.00021917,2]
[392529247,1761613841637,-1018.21,0.00021917,2]
[392529248,1761613841646,-674.49,0.00021917,2]
[392529250,1761613841656,-500.0,0.00021917,2]
[392529252,1761613841666,-500.0,0.00021917,2]
[392529254,1761613841675,-964.02,0.00021917,2]
[392529256,1761613841684,-500.0,0.00021917,2]
[392529257,1761613841693,-500.0,0.00021917,2]
[392529259,1761613841702,-631.4,0.00021917,2]
[392529261,1761613841711,-1091.57,0.00021917,2]
[392529263,1761613841721,-802.0,0.00021917,2]
[392529265,1761613841731,-1118.22,0.00021917,2]
[392529266,1761613841741,-500.0,0.00021917,2]
[392529268,1761613841751,-1032.99,0.00021917,2]
[392529270,1761613841760,-500.0,0.00021917,2]
[392529272,1761613841770,-931.13,0.00021917,2]
[392529274,1761613841779,-3020.85,0.00021917,2]
[392529276,1761613841788,-500.0,0.00021917,2]
[392529277,1761613841797,-500.0,0.00021917,2]
[392529279,1761613841807,-771.75,0.00021917,2]
[392529281,1761613841815,-500.0,0.00021917,2]
[392529283,1761613841825,-606.31,0.00021917,2]
[392529284,1761613841834,-1349.42,0.00021917,2]
[392529286,1761613841844,-500.0,0.00021917,2]
[392529288,1761613841854,-500.0,0.00021917,2]
[392529290,1761613841863,-500.0,0.00021917,2]
[392529292,1761613841872,-940.2,0.00021917,2]
[392529293,1761613841882,-500.0,0.00021917,2]
[392529295,1761613841891,-1041.91,0.00021917,2]
[392529297,1761613841900,-500.0,0.00021917,2]
[392529299,1761613841910,-654.12,0.00021917,2]
[392529301,1761613841919,-2492.61,0.00021917,2]
[392529302,1761613841928,-500.0,0.00021917,2]
[392529304,1761613841937,-500.0,0.00021917,2]
[392529306,1761613841947,-500.0,0.00021917,2]
[392529308,1761613841956,-500.0,0.00021917,2]
[392529310,1761613841965,-504.45877331,0.00021917,2]
[392529312,1761613841974,-500.0,0.00021917,2]
[392529313,1761613841984,-500.0,0.00021917,2]
[392529315,1761613841993,-500.0,0.00021917,2]
[392529317,1761613842003,-500.0,0.00021917,2]
[392529319,1761613842012,-500.0,0.00021917,2]
[392529321,1761613842021,-1675.6,0.00021917,2]
[392529322,1761613842031,-500.0,0.00021917,2]
[392529324,1761613842040,-681.59,0.00021917,2]
[392529326,1761613842049,-500.0,0.00021917,2]
[392529328,1761613842058,-500.0,0.00021917,2]
[392529330,1761613842067,-500.0,0.00021917,2]
[392529331,1761613842076,-500.0,0.00021917,2]
[392529333,1761613842086,-451.1525129,0.00021917,2]
[392529335,1761613842096,-500.0,0.00021917,2]
[392529337,1761613842105,-737.83,0.00021917,2]
[392529339,1761613842115,-942.72,0.00021917,2]
[392529341,1761613842124,-1165.6,0.00021917,2]
[392529343,1761613842133,-500.0,0.00021917,2]
[392529345,1761613842145,-500.0,0.00021917,2]
[392529347,1761613842154,-762.85,0.00021917,2]
[392529348,1761613842163,-524.64,0.00021917,2]
[392529350,1761613842173,-3614.28,0.00021917,2]
[392529352,1761613842182,-500.0,0.00021917,2]
[392529354,1761613842194,-500.0,0.00021917,2]
[392529356,1761613842204,-500.0,0.00021917,2]
[392529358,1761613842213,-500.0,0.00021917,2]
[392529359,1761613842222,-500.0,0.00021917,2]
[392529361,1761613842232,-862.94,0.00021917,2]
[392529363,1761613842242,-500.0,0.00021917,2]
[392529365,1761613842251,-500.0,0.00021917,2]
[392529367,1761613842260,-500.0,0.00021917,2]
[392529369,1761613842269,-500.0,0.00021917,2]
[392529371,1761613842278,-500.0,0.00021917,2]
[392529372,1761613842286,-502.8481024,0.00021917,2]
[392529374,1761613842295,-500.0,0.00021917,2]
[392529376,1761613842304,-500.0,0.00021917,2]
[392529378,1761613842314,-500.0,0.00021917,2]
[392529380,1761613842323,-502.68,0.00021917,2]
[392529382,1761613842332,-500.0,0.00021917,2]
[392529383,1761613842341,-2021.16,0.00021917,2]
[392529385,1761613842350,-501.14,0.00021917,2]
[392529387,1761613842360,-500.0,0.00021917,2]
[392529389,1761613842368,-500.0,0.00021917,2]
[392529391,1761613842378,-523.26,0.00021917,2]
[392529393,1761613842386,-504.72,0.00021917,2]
[392529395,1761613842395,-813.24,0.00021917,2]
[392529397,1761613842404,-1007.56,0.00021917,2]
[392529399,1761613842413,-500.0,0.00021917,2]
[392529401,1761613842422,-500.0,0.00021917,2]
[392529403,1761613842431,-500.0,0.00021917,2]
[392529405,1761613842440,-500.0,0.00021917,2]
[392529407,1761613842449,-672.58,0.00021917,2]
[392529409,1761613842459,-268.03453741,0.00021917,2]
[392529411,1761613842467,-500.0,0.00021917,2]
[392529413,1761613842476,-500.0,0.00021917,2]
[392529415,1761613842486,-500.0,0.00021917,2]
[392529417,1761613842495,-500.0,0.00021917,2]
[392529418,1761613842504,-904.09,0.00021917,2]
[392529419,1761613842513,-500.0,0.00021917,2]
[392529420,1761613842523,-505.00778318,0.00021917,2]
[392529421,1761613842532,-593.66,0.00021917,2]
[392529422,1761613842546,-500.0,0.00021917,2]
[392529423,1761613842556,-524.65,0.00021917,2]
[392529424,1761613842565,-1374.49,0.00021917,2]
[392529425,1761613842576,-500.0,0.00021917,2]
[392529426,1761613842586,-500.0,0.00021917,2]
[392529427,1761613842596,-500.0,0.00021917,2]
[392529428,1761613842605,-428.81711716,0.00021917,2]
[392529429,1761613842614,-500.0,0.00021917,2]
[392529430,1761613842624,-500.0,0.00021917,2]
[392529431,1761613842633,-551.32,0.00021917,2]
[392529432,1761613842644,-500.0,0.00021917,2]
[392529433,1761613842654,-500.0,0.00021917,2]
[392529434,1761613842663,-500.0,0.00021917,2]
[392529435,1761613842672,-1574.34,0.00021917,2]
[392529436,1761613842681,-500.0,0.00021917,2]
[392529437,1761613842691,-500.2,0.00021917,2]
[392529438,1761613842700,-1949.71,0.00021917,2]
[392529439,1761613842710,-500.0,0.00021917,2]
[392529440,1761613842719,-972.09,0.00021917,2]
[392529441,1761613842728,-500.0,0.00021917,2]
[392529442,1761613842737,-909.31,0.00021917,2]
[392529443,1761613842746,-299.99738525,0.00021917,2]
[392529444,1761613842756,-1000.0,0.00021917,2]
[392529445,1761613842765,-500.0,0.00021917,2]
[392529447,1761613842774,-500.0,0.00021917,2]
[392529448,1761613842783,-500.0,0.00021917,2]
[392529449,1761613842792,-500.0,0.00021917,2]
[392529451,1761613842801,-1445.09,0.00021917,2]
[392529453,1761613842813,-500.0,0.00021917,2]
[392529455,1761613842822,-500.0,0.00021917,2]
[392529457,1761613842832,-500.0,0.00021917,2]
[392529459,1761613842841,-500.0,0.00021917,2]
[392529461,1761613842850,-500.0,0.00021917,2]
[392529463,1761613842859,-500.0,0.00021917,2]
[392529466,1761613842868,-500.0,0.00021917,2]
[392529468,1761613842877,-1133.5,0.00021917,2]
[392529469,1761613842886,-500.0,0.00021917,2]
[392529471,1761613842895,-500.0,0.00021917,2]
[392529478,1761613843076,-2094.96,0.00021917,2]
[392529479,1761613843086,-500.0,0.00021917,2]
[392529480,1761613843095,-500.0,0.00021917,2]
[392529481,1761613843104,-635.03,0.00021917,2]
[392529482,1761613843114,-1396.57,0.00021917,2]
[392529483,1761613843123,-500.0,0.00021917,2]
[392529484,1761613843132,-665.84,0.00021917,2]
[392529485,1761613843141,-1762.41,0.00021917,2]
[392529486,1761613843150,-500.0,0.00021917,2]
[392529487,1761613843160,-500.0,0.00021917,2]
[392529488,1761613843169,-500.0,0.00021917,2]
[392529490,1761613843179,-500.0,0.00021917,2]
[392529492,1761613843188,-500.0,0.00021917,2]
[392529493,1761613843197,-500.0,0.00021917,2]
[392529495,1761613843206,-500.0,0.00021917,2]
[392529496,1761613843217,-500.0,0.00021917,2]
[392529497,1761613843227,-500.0,0.00021917,2]
[392529498,1761613843237,-777.11,0.00021917,2]
[392529499,1761613843246,-1969.05,0.00021917,2]
[392529500,1761613843256,-1213.45,0.00021917,2]
[392529501,1761613843266,-500.0,0.00021917,2]
[392529502,1761613843275,-500.0,0.00021917,2]
[392529503,1761613843284,-500.0,0.00021917,2]
[392529504,1761613843293,-500.0,0.00021917,2]
[392529505,1761613843302,-500.0,0.00021917,2]
[392529506,1761613843312,-500.0,0.00021917,2]
[392529507,1761613843321,-614.86,0.00021917,2]
[392529508,1761613843330,-500.0,0.00021917,2]
[392529509,1761613843340,-500.0,0.00021917,2]
[392529510,1761613843350,-506.45,0.00021917,2]
[392529511,1761613843361,-613.25235568,0.00021917,2]
[392529512,1761613843370,-521.25,0.00021917,2]
[392529513,1761613843379,-500.0,0.00021917,2]
[392529514,1761613843389,-611.57,0.00021917,2]
[392529515,1761613843399,-503.44,0.00021917,2]
[392529516,1761613843408,-1416.69,0.00021917,2]
[392529517,1761613843419,-566.27929696,0.00021917,2]
[392529518,1761613843430,-500.0,0.00021917,2]
[392529519,1761613843439,-500.0,0.00021917,2]
[392529520,1761613843449,-500.0,0.00021917,2]
[392529521,1761613843460,-500.0,0.00021917,2]
[392529522,1761613843469,-1061.97,0.00021917,2]
[392529523,1761613843478,-500.0,0.00021917,2]
[392529524,1761613843488,-500.0,0.00021917,2]
[392529525,1761613843497,-2033.53,0.00021917,2]
[392529526,1761613843507,-500.0,0.00021917,2]
[392529527,1761613843516,-517.68,0.00021917,2]
[392529528,1761613843525,-636.06,0.00021917,2]
[392529529,1761613843534,-500.0,0.00021917,2]
[392529530,1761613843543,-500.0,0.00021917,2]
[392529531,1761613843552,-788.85,0.00021917,2]
[392529532,1761613843563,-500.0,0.00021917,2]
[392529533,1761613843571,-500.0,0.00021917,2]
[392529534,1761613843581,-500.0,0.00021917,2]
[392529535,1761613843590,-1457.43,0.00021917,2]
[392529536,1761613843599,-501.95,0.00021917,2]
[392529537,1761613843608,-500.0,0.00021917,2]
[392529538,1761613843618,-830.57,0.00021917,2]
[392529539,1761613843627,-500.0,0.00021917,2]
[392529540,1761613843636,-500.0,0.00021917,2]
[392529541,1761613843646,-500.0,0.00021917,2]
[392529542,1761613843655,-1026.45,0.00021917,2]
[392529543,1761613843664,-707.19,0.00021917,2]
[392529544,1761613843674,-500.0,0.00021917,2]
[392529545,1761613843683,-500.0,0.00021917,2]
[392529546,1761613843694,-322.112239,0.00021917,2]
[392529547,1761613843703,-500.0,0.00021917,2]
[392529548,1761613843713,-500.0,0.00021917,2]
[392529549,1761613843722,-612.24,0.00021917,2]
[392529550,1761613843732,-500.0,0.00021917,2]
[392529551,1761613843742,-3472.14,0.00021917,2]
[392529552,1761613843751,-692.86,0.00021917,2]
[392529553,1761613843761,-504.24,0.00021917,2]
[392529554,1761613843770,-500.0,0.00021917,2]
[392529555,1761613843779,-737.57,0.00021917,2]
[392529556,1761613843788,-1398.24,0.00021917,2]
[392529557,1761613843798,-1475.08,0.00021917,2]
[392529558,1761613843808,-958.84,0.00021917,2]
[392529559,1761613843817,-507.02669006,0.00021917,2]
[392529560,1761613843826,-500.0,0.00021917,2]
[392529561,1761613843835,-500.0,0.00021917,2]
[392529562,1761613843844,-919.28,0.00021917,2]
[392529563,1761613843852,-1334.07,0.00021917,2]
[392529564,1761613843862,-500.0,0.00021917,2]
[392529565,1761613843871,-1777.76,0.00021917,2]
[392529566,1761613843881,-500.0,0.00021917,2]
[392529567,1761613843892,-500.0,0.00021917,2]
[392529568,1761613843902,-500.0,0.00021917,2]
[392529569,1761613843911,-500.0,0.00021917,2]
[392529570,1761613843922,-1817.74,0.00021917,2]
[392529571,1761613843934,-500.0,0.00021917,2]
[392529572,1761613843944,-1073.95,0.00021917,2]
[392529573,1761613843953,-500.0,0.00021917,2]
[392529574,1761613843967,-921.84,0.00021917,2]
[392529575,1761613843978,-645.55,0.00021917,2]
[392529576,1761613843987,-500.0,0.00021917,2]
[392529577,1761613843997,-500.0,0.00021917,2]
[392529578,1761613844008,-500.0,0.00021917,2]
[392529579,1761613844018,-649.69,0.00021917,2]
[392529580,1761613844029,-913.31,0.00021917,2]
[392529581,1761613844040,-500.0,0.00021917,2]
[392529582,1761613844050,-500.0,0.00021917,2]
[392529583,1761613844060,-769.0,0.00021917,2]
[392529584,1761613844069,-500.0,0.00021917,2]
[392529585,1761613844079,-500.0,0.00021917,2]
[392529586,1761613844087,-919.55,0.00021917,2]
[392529587,1761613844097,-450.0,0.00021917,2]
[392529588,1761613844106,-500.0,0.00021917,2]
[392529589,1761613844116,-500.0,0.00021917,2]
[392529590,1761613844125,-1137.09,0.00021917,2]
[392529591,1761613844134,-1496.51,0.00021917,2]
[392529592,1761613844144,-500.0,0.00021917,2]
[392529593,1761613844154,-688.26,0.00021917,2]
[392529594,1761613844164,-600.6,0.00021917,2]
[392529595,1761613844173,-500.0,0.00021917,2]
[392529596,1761613844183,-500.0,0.00021917,2]
[392529597,1761613844194,-500.0,0.00021917,2]
[392529598,1761613844205,-549.21,0.00021917,2]
[392529599,1761613844216,-500.0,0.00021917,2]
[392529600,1761613844227,-500.0,0.00021917,2]
[392529601,1761613844236,-701.99,0.00021917,2]
[392529602,1761613844247,-990.91,0.00021917,2]
[392529603,1761613844257,-682.92,0.00021917,2]
[392529604,1761613844266,-500.0,0.00021917,2]
[392529605,1761613844276,-500.0,0.00021917,2]
[392529606,1761613844286,-739.05,0.00021917,2]
[392529607,1761613844296,-500.0,0.00021917,2]
[392529608,1761613844307,-500.0,0.00021917,2]
[392529609,1761613844316,-1230.84,0.00021917,2]
[392529610,1761613844325,-1093.88,0.00021917,2]
[392529611,1761613844334,-500.0,0.00021917,2]
[392529612,1761613844344,-648.65,0.00021917,2]
[392529613,1761613844354,-2239.31,0.00021917,2]
[392529614,1761613844363,-709.04,0.00021917,2]
[392529615,1761613844373,-1505.78,0.00021917,2]
[392529616,1761613844383,-2871.87,0.00021917,2]
[392529617,1761613844393,-1679.26,0.00021917,2]
[392529618,1761613844403,-500.0,0.00021917,2]
[392529619,1761613844415,-2479.23,0.00021917,2]
[392529620,1761613844424,-500.0,0.00021917,2]
[392529621,1761613844433,-500.0,0.00021917,2]
[392529622,1761613844443,-500.0,0.00021917,2]
[392529623,1761613844453,-500.0,0.00021917,2]
[392529624,1761613844463,-500.0,0.00021917,2]
[392529625,1761613844472,-500.0,0.00021917,2]
[392529626,1761613844482,-500.0,0.00021917,2]
[392529627,1761613844491,-719.61,0.00021917,2]
[392529628,1761613844500,-621.66,0.00021917,2]
[392529629,1761613844509,-500.0,0.00021917,2]
[392529630,1761613844520,-500.0,0.00021917,2]
[392529631,1761613844532,-559.2,0.00021917,2]
[392529632,1761613844547,-500.0,0.00021917,2]
[392529633,1761613844556,-500.0,0.00021917,2]
[392529634,1761613844565,-819.63,0.00021917,2]
[392529635,1761613844575,-2167.48,0.00021917,2]
[392529636,1761613844588,-500.0,0.00021917,2]
[392529637,1761613844597,-812.04,0.00021917,2]
[392529638,1761613844606,-500.0,0.00021917,2]
[392529639,1761613844616,-500.0,0.00021917,2]
[392529640,1761613844627,-822.44,0.00021917,2]
[392529641,1761613844638,-682.86,0.00021917,2]
[392529642,1761613844647,-500.0,0.00021917,2]
[392529643,1761613844657,-1219.12,0.00021917,2]
[392529644,1761613844666,-500.0,0.00021917,2]
[392529645,1761613844675,-1835.63,0.00021917,2]
[392529646,1761613844685,-500.0,0.00021917,2]
[392529647,1761613844694,-500.0,0.00021917,2]
[392529648,1761613844703,-1000.07,0.00021917,2]
[392529649,1761613844712,-802.94,0.00021917,2]
[392529650,1761613844722,-2966.22,0.00021917,2]
[392529651,1761613844731,-500.0,0.00021917,2]
[392529652,1761613844740,-2202.84,0.00021917,2]
[392529653,1761613844750,-500.0,0.00021917,2]